[Event "Titled Tuesday Blitz July 11 Late 2023"]
[White "Trifan, Andrei Ioan"]
[Black "Kohler, Aran"]
[WhiteFideId "12967068"]
[BlackFideId "1002856"]
[WhiteElo "2495"]
[BlackElo "2235"]
[Result "1-0"]
[Round "2"]
[TimeControl "180+2"]
[Date "2023.07.11"]
[WhiteClock "0:00:17"]
[BlackClock "0:00:00"]
[Board "164"]

1. Nf3 {[%clk 0:03:00]}  Nf6 {[%clk 0:02:59]} 2. e3 {[%clk 0:02:58]}  d5 {[%clk 0:02:59]} 3. Be2 {[%clk 0:02:56]}  c5 {[%clk 0:02:56]} 4. d4 {[%clk 0:02:56]}  Nc6 {[%clk 0:02:56]} 5. b3 {[%clk 0:02:54]}  cxd4 {[%clk 0:02:51]} 6. Nxd4 {[%clk 0:02:54]}  e5 {[%clk 0:02:49]} 7. Nxc6 {[%clk 0:02:54]}  bxc6 {[%clk 0:02:49]} 8. Bb2 {[%clk 0:02:55]}  Bd6 {[%clk 0:02:49]} 9. O-O {[%clk 0:02:52]}  O-O {[%clk 0:02:49]} 10. c4 {[%clk 0:02:52]}  Re8 {[%clk 0:02:48]} 11. Nc3 {[%clk 0:02:50]}  d4 {[%clk 0:02:46]} 12. exd4 {[%clk 0:02:48]}  exd4 {[%clk 0:02:46]} 13. Na4 {[%clk 0:02:46]}  c5 {[%clk 0:02:45]} 14. Bf3 {[%clk 0:02:46]}  Rb8 {[%clk 0:02:44]} 15. Ba3 {[%clk 0:02:45]}  Qc7 {[%clk 0:02:30]} 16. Re1 {[%clk 0:02:38]}  Bd7 {[%clk 0:02:25]} 17. Qd2 {[%clk 0:02:28]}  Bxa4 {[%clk 0:02:23]} 18. bxa4 {[%clk 0:02:29]}  Bxh2+ {[%clk 0:02:23]} 19. Kf1 {[%clk 0:02:23]}  Bd6 {[%clk 0:02:21]} 20. a5 {[%clk 0:02:19]}  Bf8 {[%clk 0:02:15]} 21. a6 {[%clk 0:02:17]}  Qh2 {[%clk 0:02:14]} 22. g3 {[%clk 0:02:15]}  Re6 {[%clk 0:01:39]} 23. Rxe6 {[%clk 0:02:14]}  Qh3+ {[%clk 0:01:38]} 24. Kg1 {[%clk 0:02:05]}  Qxe6 {[%clk 0:01:39]} 25. Qd3 {[%clk 0:02:02]}  Qxa6 {[%clk 0:01:38]} 26. Bc1 {[%clk 0:02:00]}  g6 {[%clk 0:01:32]} 27. Bf4 {[%clk 0:01:55]}  Re8 {[%clk 0:01:31]} 28. Kg2 {[%clk 0:01:49]}  Bg7 {[%clk 0:01:30]} 29. a4 {[%clk 0:01:44]}  h5 {[%clk 0:01:30]} 30. Qb3 {[%clk 0:01:41]}  Ng4 {[%clk 0:01:29]} 31. Qb5 {[%clk 0:01:40]}  Qc8 {[%clk 0:01:23]} 32. Bb7 {[%clk 0:01:36]}  Qe6 {[%clk 0:01:11]} 33. Bf3 {[%clk 0:01:28]}  d3 {[%clk 0:01:08]} 34. Rd1 {[%clk 0:01:28]}  Bd4 {[%clk 0:01:06]} 35. Rxd3 {[%clk 0:00:58]}  Nxf2 {[%clk 0:01:06]} 36. Rxd4 {[%clk 0:00:55]}  cxd4 {[%clk 0:01:07]} 37. Kxf2 {[%clk 0:00:55]}  Qe1+ {[%clk 0:01:06]} 38. Kg2 {[%clk 0:00:55]}  d3 {[%clk 0:00:59]} 39. Qd5 {[%clk 0:00:42]}  Re2+ {[%clk 0:00:50]} 40. Bxe2 {[%clk 0:00:42]}  Qxe2+ {[%clk 0:00:43]} 41. Kh1 {[%clk 0:00:38]}  Qf1+ {[%clk 0:00:42]} 42. Kh2 {[%clk 0:00:38]}  Qe2+ {[%clk 0:00:43]} 43. Qg2 {[%clk 0:00:37]}  Qe8 {[%clk 0:00:34]} 44. c5 {[%clk 0:00:34]}  Qxa4 {[%clk 0:00:34]} 45. c6 {[%clk 0:00:33]}  Qc4 {[%clk 0:00:28]} 46. c7 {[%clk 0:00:33]}  Kh7 {[%clk 0:00:27]} 47. Qb7 {[%clk 0:00:26]}  Qc2+ {[%clk 0:00:21]} 48. Kh3 {[%clk 0:00:23]}  d2 {[%clk 0:00:17]} 49. Bxd2 {[%clk 0:00:22]}  Qxd2 {[%clk 0:00:18]} 50. c8=Q {[%clk 0:00:20]}  Qf2 {[%clk 0:00:18]} 51. Qg2 {[%clk 0:00:18]}  Qf6 {[%clk 0:00:16]} 52. Qcc2 {[%clk 0:00:18]}  Qe6+ {[%clk 0:00:16]} 53. Kh2 {[%clk 0:00:17]}  a5 {[%clk 0:00:15]} 54. Qge2 {[%clk 0:00:17]}  Qf6 {[%clk 0:00:13]} 55. Qb2 {[%clk 0:00:18]}  Qd8 {[%clk 0:00:09]} 56. Qee5 {[%clk 0:00:17]}  Qf8 {[%clk 0:00:07]} 57. Qxa5 {[%clk 0:00:17]}  Qe7 {[%clk 0:00:05]} 58. Qae5 {[%clk 0:00:17]}  Qf8 {[%clk 0:00:00]} 59. Qbb8 {[%clk 0:00:17]} 1-0


[Site "https://www.chess.com"]

[Event "Titled Tuesday Blitz July 11 Late 2023"]
[White "Koc, Przemyslaw"]
[Black "Sala, Giulia"]
[WhiteFideId "1109081"]
[BlackFideId "2840451"]
[WhiteElo "2494"]
[BlackElo "2221"]
[Result "1-0"]
[Round "2"]
[TimeControl "180+2"]
[Date "2023.07.11"]
[WhiteClock "0:00:34"]
[BlackClock "0:01:16"]
[Board "166"]

1. Nf3 {[%clk 0:03:00]}  Nf6 {[%clk 0:02:58]} 2. g3 {[%clk 0:03:01]}  g6 {[%clk 0:02:55]} 3. b3 {[%clk 0:03:01]}  Bg7 {[%clk 0:02:55]} 4. Bb2 {[%clk 0:03:01]}  O-O {[%clk 0:02:56]} 5. Bg2 {[%clk 0:03:01]}  d6 {[%clk 0:02:56]} 6. d4 {[%clk 0:03:00]}  Ne4 {[%clk 0:02:56]} 7. Nfd2 {[%clk 0:02:57]}  Nxd2 {[%clk 0:02:53]} 8. Nxd2 {[%clk 0:02:56]}  Nc6 {[%clk 0:02:51]} 9. e3 {[%clk 0:02:53]}  Bd7 {[%clk 0:02:49]} 10. O-O {[%clk 0:02:51]}  e5 {[%clk 0:02:46]} 11. dxe5 {[%clk 0:02:29]}  dxe5 {[%clk 0:02:43]} 12. Qe2 {[%clk 0:02:24]}  a6 {[%clk 0:02:39]} 13. c4 {[%clk 0:02:21]}  Qe7 {[%clk 0:02:35]} 14. a3 {[%clk 0:02:21]}  Rfd8 {[%clk 0:02:31]} 15. b4 {[%clk 0:02:20]}  Be6 {[%clk 0:02:30]} 16. Nb3 {[%clk 0:02:19]}  f5 {[%clk 0:02:27]} 17. Nc5 {[%clk 0:02:06]}  Bc8 {[%clk 0:02:21]} 18. Rad1 {[%clk 0:02:05]}  Rd6 {[%clk 0:02:19]} 19. Rd2 {[%clk 0:01:47]}  Rb8 {[%clk 0:02:19]} 20. Rfd1 {[%clk 0:01:46]}  b6 {[%clk 0:02:18]} 21. Rxd6 {[%clk 0:01:46]}  cxd6 {[%clk 0:02:19]} 22. Nxa6 {[%clk 0:01:42]}  Bxa6 {[%clk 0:02:20]} 23. Bxc6 {[%clk 0:01:42]}  Rc8 {[%clk 0:02:18]} 24. Bd5+ {[%clk 0:01:37]}  Kh8 {[%clk 0:02:17]} 25. a4 {[%clk 0:01:36]}  Rc7 {[%clk 0:02:10]} 26. Ba3 {[%clk 0:01:24]}  h5 {[%clk 0:02:08]} 27. h4 {[%clk 0:01:23]}  Bc8 {[%clk 0:02:07]} 28. b5 {[%clk 0:01:19]}  Bf8 {[%clk 0:02:03]} 29. Bb4 {[%clk 0:01:15]}  Be6 {[%clk 0:02:02]} 30. a5 {[%clk 0:01:13]}  Bxd5 {[%clk 0:02:01]} 31. Rxd5 {[%clk 0:01:12]}  Qd8 {[%clk 0:01:55]} 32. a6 {[%clk 0:01:04]}  Kg7 {[%clk 0:01:42]} 33. Qd3 {[%clk 0:01:04]}  Rd7 {[%clk 0:01:41]} 34. f4 {[%clk 0:01:02]}  e4 {[%clk 0:01:38]} 35. Qa3 {[%clk 0:00:59]}  Qb8 {[%clk 0:01:35]} 36. Bc3+ {[%clk 0:00:56]}  Kh7 {[%clk 0:01:36]} 37. Bd4 {[%clk 0:00:54]}  Be7 {[%clk 0:01:33]} 38. Qb4 {[%clk 0:00:53]}  Qd8 {[%clk 0:01:31]} 39. Bc3 {[%clk 0:00:52]}  Bxh4 {[%clk 0:01:28]} 40. gxh4 {[%clk 0:00:51]}  Qxh4 {[%clk 0:01:29]} 41. Be1 {[%clk 0:00:47]}  Qh3 {[%clk 0:01:24]} 42. Qd2 {[%clk 0:00:44]}  Rc7 {[%clk 0:01:19]} 43. Rxd6 {[%clk 0:00:35]}  Rxc4 {[%clk 0:01:18]} 44. Rd7+ {[%clk 0:00:36]}  Kh6 {[%clk 0:01:18]} 45. Qg2 {[%clk 0:00:34]}  Qxe3+ {[%clk 0:01:16]} 46. Kh1 {[%clk 0:00:34]}  Rc1 {[%clk 0:01:16]} 47. Qg5# {[%clk 0:00:34]} 1-0


[Site "https://www.chess.com"]

[Event "Titled Tuesday Blitz July 11 Late 2023"]
[White "Kopacz, Grzegorz"]
[Black "Novikov, Evgenij"]
[WhiteFideId "1109880"]
[BlackFideId "4125380"]
[WhiteElo "2221"]
[BlackElo "2494"]
[Result "1-0"]
[Round "2"]
[TimeControl "180+2"]
[Date "2023.07.11"]
[WhiteClock "0:00:59"]
[BlackClock "0:00:39"]
[Board "167"]

1. e4 {[%clk 0:03:00]}  e5 {[%clk 0:02:59]} 2. Nc3 {[%clk 0:02:57]}  Nf6 {[%clk 0:02:58]} 3. Bc4 {[%clk 0:02:55]}  Bc5 {[%clk 0:02:56]} 4. d3 {[%clk 0:02:52]}  d6 {[%clk 0:02:54]} 5. f4 {[%clk 0:02:45]}  Ng4 {[%clk 0:02:41]} 6. f5 {[%clk 0:02:40]}  Qh4+ {[%clk 0:02:29]} 7. g3 {[%clk 0:02:36]}  Bf2+ {[%clk 0:02:28]} 8. Kf1 {[%clk 0:02:23]}  Bxg3 {[%clk 0:02:21]} 9. hxg3 {[%clk 0:02:11]}  Qxh1 {[%clk 0:02:21]} 10. Qxg4 {[%clk 0:02:11]}  g6 {[%clk 0:02:13]} 11. Nd5 {[%clk 0:02:03]}  Kd7 {[%clk 0:01:31]} 12. fxg6+ {[%clk 0:01:58]}  Kc6 {[%clk 0:01:30]} 13. Ne7+ {[%clk 0:01:56]}  Kb6 {[%clk 0:01:29]} 14. Be3+ {[%clk 0:01:55]}  c5 {[%clk 0:01:28]} 15. Nxc8+ {[%clk 0:01:54]}  Kc7 {[%clk 0:01:23]} 16. Ne7 {[%clk 0:01:50]}  fxg6 {[%clk 0:01:18]} 17. Nd5+ {[%clk 0:01:45]}  Kc6 {[%clk 0:01:18]} 18. b4 {[%clk 0:01:35]}  Rf8+ {[%clk 0:01:17]} 19. Bf2 {[%clk 0:01:25]}  a6 {[%clk 0:00:48]} 20. bxc5 {[%clk 0:01:21]}  Qh2 {[%clk 0:00:42]} 21. Ne7+ {[%clk 0:01:03]}  Kc7 {[%clk 0:00:41]} 22. cxd6+ {[%clk 0:01:03]}  Kxd6 {[%clk 0:00:41]} 23. Qe6+ {[%clk 0:01:00]}  Kc7 {[%clk 0:00:41]} 24. Nd5+ {[%clk 0:00:59]}  Kd8 {[%clk 0:00:39]} 25. Qe7+ {[%clk 0:00:59]}  Kc8 {[%clk 0:00:39]} 26. Qc7# {[%clk 0:00:59]} 1-0


[Site "https://www.chess.com"]

[Event "Titled Tuesday Blitz July 11 Late 2023"]
[White "Liu, Casper"]
[Black "Thiel, Thomas"]
[WhiteFideId "1454153"]
[BlackFideId "4615964"]
[WhiteElo "2491"]
[BlackElo "2220"]
[Result "1-0"]
[Round "2"]
[TimeControl "180+2"]
[Date "2023.07.11"]
[WhiteClock "0:00:24"]
[BlackClock "0:00:41"]
[Board "168"]

1. d4 {[%clk 0:03:00]}  d5 {[%clk 0:02:58]} 2. Bf4 {[%clk 0:02:58]}  Nf6 {[%clk 0:02:54]} 3. Nf3 {[%clk 0:02:58]}  c5 {[%clk 0:02:54]} 4. e3 {[%clk 0:02:58]}  Nc6 {[%clk 0:02:54]} 5. Nbd2 {[%clk 0:02:58]}  Qb6 {[%clk 0:02:49]} 6. dxc5 {[%clk 0:02:58]}  Qxb2 {[%clk 0:02:46]} 7. Rb1 {[%clk 0:02:57]}  Qc3 {[%clk 0:02:45]} 8. Bb5 {[%clk 0:02:57]}  Nd7 {[%clk 0:02:25]} 9. O-O {[%clk 0:02:32]}  Qxc5 {[%clk 0:02:23]} 10. e4 {[%clk 0:02:24]}  d4 {[%clk 0:02:16]} 11. Bxc6 {[%clk 0:01:50]}  bxc6 {[%clk 0:02:14]} 12. Nb3 {[%clk 0:01:47]}  Qh5 {[%clk 0:02:04]} 13. Nbxd4 {[%clk 0:01:41]}  Ba6 {[%clk 0:01:41]} 14. c4 {[%clk 0:01:05]}  Rc8 {[%clk 0:01:30]} 15. Qa4 {[%clk 0:01:01]}  e5 {[%clk 0:01:20]} 16. Nxe5 {[%clk 0:00:51]}  Nxe5 {[%clk 0:01:17]} 17. Bxe5 {[%clk 0:00:51]}  Qxe5 {[%clk 0:01:15]} 18. Nxc6 {[%clk 0:00:52]}  Qe6 {[%clk 0:00:56]} 19. Nxa7+ {[%clk 0:00:24]}  Qd7 {[%clk 0:00:41]} 20. Qxa6 {[%clk 0:00:24]} 1-0


[Site "https://www.chess.com"]

[Event "Titled Tuesday Blitz July 11 Late 2023"]
[White "Urbina Perez, Juan Antonio"]
[Black "Broca Jimenez, Fernando"]
[WhiteFideId "2217368"]
[BlackFideId "5104742"]
[WhiteElo "2491"]
[BlackElo "2219"]
[Result "1-0"]
[Round "2"]
[TimeControl "180+2"]
[Date "2023.07.11"]
[WhiteClock "0:00:44"]
[BlackClock "0:00:03"]
[Board "169"]

1. e4 {[%clk 0:03:00]}  c5 {[%clk 0:02:59]} 2. Nf3 {[%clk 0:03:00]}  d6 {[%clk 0:02:57]} 3. Bb5+ {[%clk 0:03:01]}  Nd7 {[%clk 0:02:53]} 4. d4 {[%clk 0:03:01]}  cxd4 {[%clk 0:02:53]} 5. Qxd4 {[%clk 0:03:02]}  Nf6 {[%clk 0:02:52]} 6. Nc3 {[%clk 0:03:01]}  a6 {[%clk 0:02:50]} 7. Bxd7+ {[%clk 0:03:01]}  Bxd7 {[%clk 0:02:49]} 8. Bg5 {[%clk 0:03:01]}  e6 {[%clk 0:02:45]} 9. O-O-O {[%clk 0:02:58]}  Be7 {[%clk 0:02:44]} 10. e5 {[%clk 0:02:59]}  dxe5 {[%clk 0:02:10]} 11. Nxe5 {[%clk 0:03:00]}  Bc6 {[%clk 0:02:10]} 12. Nxc6 {[%clk 0:02:50]}  bxc6 {[%clk 0:02:07]} 13. Bxf6 {[%clk 0:02:44]}  Bxf6 {[%clk 0:02:05]} 14. Qc5 {[%clk 0:02:42]}  Qc7 {[%clk 0:02:00]} 15. g3 {[%clk 0:02:35]}  Be7 {[%clk 0:01:56]} 16. Qc4 {[%clk 0:02:35]}  O-O {[%clk 0:01:54]} 17. Rd3 {[%clk 0:02:33]}  Rab8 {[%clk 0:01:45]} 18. Rhd1 {[%clk 0:02:28]}  Qa5 {[%clk 0:01:34]} 19. Qa4 {[%clk 0:02:17]}  Qb6 {[%clk 0:01:17]} 20. b3 {[%clk 0:02:11]}  Qxf2 {[%clk 0:01:03]} 21. Kb1 {[%clk 0:01:42]}  Qxh2 {[%clk 0:00:30]} 22. Ne4 {[%clk 0:01:40]}  f5 {[%clk 0:00:25]} 23. Nc3 {[%clk 0:01:31]}  Bf6 {[%clk 0:00:23]} 24. Qxc6 {[%clk 0:01:30]}  Kh8 {[%clk 0:00:20]} 25. Qxe6 {[%clk 0:01:26]}  Rfc8 {[%clk 0:00:18]} 26. Qxf5 {[%clk 0:01:18]}  h6 {[%clk 0:00:17]} 27. R1d2 {[%clk 0:01:13]}  Qg1+ {[%clk 0:00:16]} 28. Kb2 {[%clk 0:01:11]}  Qc5 {[%clk 0:00:13]} 29. Qf3 {[%clk 0:01:03]}  Qc6 {[%clk 0:00:11]} 30. Qxc6 {[%clk 0:00:58]}  Rxc6 {[%clk 0:00:11]} 31. Rf2 {[%clk 0:00:56]}  Rbc8 {[%clk 0:00:07]} 32. Rff3 {[%clk 0:00:56]}  Kh7 {[%clk 0:00:06]} 33. a3 {[%clk 0:00:56]}  Kg6 {[%clk 0:00:06]} 34. b4 {[%clk 0:00:56]}  Rc4 {[%clk 0:00:05]} 35. Kb3 {[%clk 0:00:55]}  h5 {[%clk 0:00:06]} 36. Nd5 {[%clk 0:00:46]}  Rxc2 {[%clk 0:00:05]} 37. Nxf6 {[%clk 0:00:47]}  gxf6 {[%clk 0:00:06]} 38. Rd6 {[%clk 0:00:47]}  Rf8 {[%clk 0:00:05]} 39. Rxa6 {[%clk 0:00:47]}  Kg5 {[%clk 0:00:05]} 40. Ra5+ {[%clk 0:00:46]}  f5 {[%clk 0:00:03]} 41. Kxc2 {[%clk 0:00:44]} 1-0


[Site "https://www.chess.com"]

[Event "Titled Tuesday Blitz July 11 Late 2023"]
[White "Cooper, Aaron"]
[Black "Camacho Collados, Marcos"]
[WhiteFideId "2634945"]
[BlackFideId "2266237"]
[WhiteElo "2219"]
[BlackElo "2487"]
[Result "1-0"]
[Round "2"]
[TimeControl "180+2"]
[Date "2023.07.11"]
[WhiteClock "0:00:18"]
[BlackClock "0:00:07"]
[Board "170"]

1. b4 {[%clk 0:03:00]}  e5 {[%clk 0:02:58]} 2. Bb2 {[%clk 0:03:00]}  d6 {[%clk 0:02:58]} 3. c4 {[%clk 0:02:58]}  Nf6 {[%clk 0:02:58]} 4. e3 {[%clk 0:02:54]}  g6 {[%clk 0:02:57]} 5. Nf3 {[%clk 0:02:52]}  Bg7 {[%clk 0:02:56]} 6. d4 {[%clk 0:02:45]}  e4 {[%clk 0:02:56]} 7. Nfd2 {[%clk 0:02:45]}  O-O {[%clk 0:02:57]} 8. Nc3 {[%clk 0:02:43]}  Re8 {[%clk 0:02:58]} 9. Be2 {[%clk 0:02:42]}  h5 {[%clk 0:02:56]} 10. h3 {[%clk 0:02:39]}  c6 {[%clk 0:02:47]} 11. Qb3 {[%clk 0:02:36]}  b6 {[%clk 0:02:36]} 12. d5 {[%clk 0:02:31]}  c5 {[%clk 0:02:36]} 13. a3 {[%clk 0:02:22]}  Bf5 {[%clk 0:02:30]} 14. Rg1 {[%clk 0:02:17]}  Qd7 {[%clk 0:02:21]} 15. O-O-O {[%clk 0:02:11]}  cxb4 {[%clk 0:02:16]} 16. axb4 {[%clk 0:02:11]}  a5 {[%clk 0:02:17]} 17. b5 {[%clk 0:02:05]}  h4 {[%clk 0:02:16]} 18. Na4 {[%clk 0:02:04]}  Qc7 {[%clk 0:02:12]} 19. Bd4 {[%clk 0:01:57]}  Nbd7 {[%clk 0:02:08]} 20. Qb2 {[%clk 0:01:55]}  Rec8 {[%clk 0:01:54]} 21. Kb1 {[%clk 0:01:54]}  Rab8 {[%clk 0:01:53]} 22. Rc1 {[%clk 0:01:54]}  Qd8 {[%clk 0:01:53]} 23. Bg4 {[%clk 0:01:44]}  Bxg4 {[%clk 0:01:45]} 24. hxg4 {[%clk 0:01:44]}  Nc5 {[%clk 0:01:46]} 25. Nxc5 {[%clk 0:01:37]}  bxc5 {[%clk 0:01:45]} 26. Bc3 {[%clk 0:01:37]}  Ne8 {[%clk 0:01:37]} 27. Nxe4 {[%clk 0:01:33]}  Bxc3 {[%clk 0:01:26]} 28. Qxc3 {[%clk 0:01:32]}  Qe7 {[%clk 0:01:27]} 29. f3 {[%clk 0:01:24]}  f5 {[%clk 0:01:18]} 30. gxf5 {[%clk 0:01:18]}  gxf5 {[%clk 0:01:19]} 31. Nd2 {[%clk 0:01:16]}  Qf6 {[%clk 0:01:14]} 32. g3 {[%clk 0:01:05]}  Qxc3 {[%clk 0:01:10]} 33. Rxc3 {[%clk 0:01:06]}  hxg3 {[%clk 0:01:09]} 34. Rxg3+ {[%clk 0:01:06]}  Kf7 {[%clk 0:01:10]} 35. Rc1 {[%clk 0:01:02]}  Nf6 {[%clk 0:00:56]} 36. Rcg1 {[%clk 0:01:01]}  Rg8 {[%clk 0:00:53]} 37. Rxg8 {[%clk 0:01:00]}  Nxg8 {[%clk 0:00:54]} 38. Kc2 {[%clk 0:00:54]}  Ne7 {[%clk 0:00:52]} 39. Kd3 {[%clk 0:00:54]}  Ng6 {[%clk 0:00:52]} 40. f4 {[%clk 0:00:50]}  Nh4 {[%clk 0:00:50]} 41. Rg5 {[%clk 0:00:45]}  Kf6 {[%clk 0:00:49]} 42. Rh5 {[%clk 0:00:42]}  Ng2 {[%clk 0:00:47]} 43. Nf3 {[%clk 0:00:40]}  Re8 {[%clk 0:00:46]} 44. Rh6+ {[%clk 0:00:35]}  Kg7 {[%clk 0:00:45]} 45. Re6 {[%clk 0:00:35]}  Rd8 {[%clk 0:00:32]} 46. b6 {[%clk 0:00:32]}  a4 {[%clk 0:00:27]} 47. Re7+ {[%clk 0:00:32]}  Kf6 {[%clk 0:00:26]} 48. Ra7 {[%clk 0:00:32]}  Rb8 {[%clk 0:00:25]} 49. b7 {[%clk 0:00:29]}  a3 {[%clk 0:00:25]} 50. Nd2 {[%clk 0:00:30]}  a2 {[%clk 0:00:23]} 51. Nb3 {[%clk 0:00:30]}  Ne1+ {[%clk 0:00:23]} 52. Kd2 {[%clk 0:00:29]}  Nf3+ {[%clk 0:00:21]} 53. Kc3 {[%clk 0:00:29]}  Ke7 {[%clk 0:00:16]} 54. Kb2 {[%clk 0:00:29]}  Kd7 {[%clk 0:00:17]} 55. Kxa2 {[%clk 0:00:29]}  Kc7 {[%clk 0:00:17]} 56. Na5 {[%clk 0:00:29]}  Nd2 {[%clk 0:00:15]} 57. Ra6 {[%clk 0:00:30]}  Nf1 {[%clk 0:00:13]} 58. Rc6+ {[%clk 0:00:30]}  Kd7 {[%clk 0:00:14]} 59. Rb6 {[%clk 0:00:22]}  Kc7 {[%clk 0:00:14]} 60. Rb3 {[%clk 0:00:21]}  Nxe3 {[%clk 0:00:14]} 61. Rxe3 {[%clk 0:00:21]}  Kb6 {[%clk 0:00:14]} 62. Ra3 {[%clk 0:00:19]}  Re8 {[%clk 0:00:12]} 63. Kb3 {[%clk 0:00:19]}  Re3+ {[%clk 0:00:12]} 64. Ka4 {[%clk 0:00:20]}  Re8 {[%clk 0:00:08]} 65. Rb3+ {[%clk 0:00:20]}  Ka6 {[%clk 0:00:08]} 66. b8=Q {[%clk 0:00:20]}  Rxb8 {[%clk 0:00:07]} 67. Rxb8 {[%clk 0:00:18]} 1-0


[Site "https://www.chess.com"]

[Event "Titled Tuesday Blitz July 11 Late 2023"]
[White "Taboas Rodriguez, Daniel"]
[Black "KSho99"]
[WhiteFideId "2208466"]
[WhiteElo "2487"]
[BlackElo "2211"]
[Result "1-0"]
[Round "2"]
[TimeControl "180+2"]
[Date "2023.07.11"]
[WhiteClock "0:01:50"]
[BlackClock "0:00:01"]
[Board "171"]

1. d4 {[%clk 0:03:00]}  d5 {[%clk 0:02:58]} 2. Nf3 {[%clk 0:03:01]}  Nf6 {[%clk 0:02:58]} 3. c4 {[%clk 0:03:01]}  dxc4 {[%clk 0:02:59]} 4. e3 {[%clk 0:03:01]}  e6 {[%clk 0:02:59]} 5. Bxc4 {[%clk 0:03:02]}  c5 {[%clk 0:03:00]} 6. O-O {[%clk 0:03:02]}  a6 {[%clk 0:03:00]} 7. b3 {[%clk 0:03:01]}  b6 {[%clk 0:02:55]} 8. Bb2 {[%clk 0:03:01]}  Bb7 {[%clk 0:02:54]} 9. Nbd2 {[%clk 0:03:01]}  Nbd7 {[%clk 0:02:54]} 10. Qe2 {[%clk 0:03:01]}  Be7 {[%clk 0:02:51]} 11. Ne5 {[%clk 0:02:59]}  O-O {[%clk 0:02:41]} 12. Ndf3 {[%clk 0:02:56]}  Nxe5 {[%clk 0:02:20]} 13. dxe5 {[%clk 0:02:55]}  Nd5 {[%clk 0:02:08]} 14. Rad1 {[%clk 0:02:54]}  Qc7 {[%clk 0:02:04]} 15. e4 {[%clk 0:02:54]}  Nf4 {[%clk 0:02:00]} 16. Qe3 {[%clk 0:02:54]}  Ng6 {[%clk 0:01:51]} 17. a4 {[%clk 0:02:53]}  Rfd8 {[%clk 0:01:46]} 18. h4 {[%clk 0:02:43]}  Nxh4 {[%clk 0:01:42]} 19. Nxh4 {[%clk 0:02:42]}  Bxh4 {[%clk 0:01:41]} 20. g3 {[%clk 0:02:38]}  Be7 {[%clk 0:01:38]} 21. f4 {[%clk 0:02:39]}  Rxd1 {[%clk 0:01:34]} 22. Rxd1 {[%clk 0:02:40]}  Rd8 {[%clk 0:01:34]} 23. Rf1 {[%clk 0:02:33]}  Qc6 {[%clk 0:01:25]} 24. Re1 {[%clk 0:02:28]}  b5 {[%clk 0:01:20]} 25. axb5 {[%clk 0:02:29]}  axb5 {[%clk 0:01:20]} 26. Bf1 {[%clk 0:02:28]}  c4 {[%clk 0:01:15]} 27. Kh2 {[%clk 0:02:26]}  Bc5 {[%clk 0:00:51]} 28. Qf3 {[%clk 0:02:25]}  Rd2+ {[%clk 0:00:48]} 29. Re2 {[%clk 0:02:24]}  Rxe2+ {[%clk 0:00:36]} 30. Bxe2 {[%clk 0:02:23]}  cxb3 {[%clk 0:00:19]} 31. Bd3 {[%clk 0:02:23]}  b4 {[%clk 0:00:13]} 32. Qd1 {[%clk 0:02:20]}  Bb6 {[%clk 0:00:07]} 33. Qxb3 {[%clk 0:02:17]}  Qc5 {[%clk 0:00:07]} 34. Qc2 {[%clk 0:02:14]}  Qxc2+ {[%clk 0:00:05]} 35. Bxc2 {[%clk 0:02:15]}  Be3 {[%clk 0:00:04]} 36. Kg2 {[%clk 0:02:13]}  Bd2 {[%clk 0:00:04]} 37. Kf3 {[%clk 0:02:12]}  f5 {[%clk 0:00:04]} 38. exf6 {[%clk 0:02:10]}  gxf6 {[%clk 0:00:04]} 39. Bxf6 {[%clk 0:02:11]}  Bc3 {[%clk 0:00:04]} 40. Bxc3 {[%clk 0:02:10]}  bxc3 {[%clk 0:00:05]} 41. Ke3 {[%clk 0:02:11]}  Kf7 {[%clk 0:00:05]} 42. Kd4 {[%clk 0:02:11]}  Kg6 {[%clk 0:00:05]} 43. Kxc3 {[%clk 0:02:08]}  Kf6 {[%clk 0:00:05]} 44. Kd4 {[%clk 0:02:07]}  h6 {[%clk 0:00:05]} 45. e5+ {[%clk 0:02:06]}  Ke7 {[%clk 0:00:06]} 46. Kc5 {[%clk 0:02:06]}  Bf3 {[%clk 0:00:06]} 47. Ba4 {[%clk 0:02:05]}  Bg4 {[%clk 0:00:06]} 48. Bc6 {[%clk 0:02:05]}  Bf5 {[%clk 0:00:06]} 49. Kb6 {[%clk 0:02:05]}  Bg4 {[%clk 0:00:06]} 50. Kc7 {[%clk 0:02:05]}  Bf5 {[%clk 0:00:06]} 51. Bf3 {[%clk 0:02:05]}  Bd3 {[%clk 0:00:07]} 52. Kc6 {[%clk 0:02:02]}  Bc2 {[%clk 0:00:07]} 53. Kc5 {[%clk 0:02:02]}  Bg6 {[%clk 0:00:06]} 54. Kd4 {[%clk 0:02:02]}  Bb1 {[%clk 0:00:05]} 55. Ke3 {[%clk 0:02:02]}  Ba2 {[%clk 0:00:05]} 56. Kf2 {[%clk 0:02:03]}  Bc4 {[%clk 0:00:05]} 57. Kg2 {[%clk 0:02:03]}  Kf7 {[%clk 0:00:06]} 58. Kh3 {[%clk 0:02:04]}  Kg7 {[%clk 0:00:06]} 59. Kh4 {[%clk 0:02:03]}  Bb3 {[%clk 0:00:06]} 60. Kh3 {[%clk 0:01:57]}  Bc2 {[%clk 0:00:06]} 61. Kg2 {[%clk 0:01:58]}  Bb3 {[%clk 0:00:06]} 62. Kf2 {[%clk 0:01:58]}  Kf7 {[%clk 0:00:06]} 63. Ke3 {[%clk 0:01:58]}  Ke7 {[%clk 0:00:07]} 64. Kd4 {[%clk 0:01:59]}  Bc2 {[%clk 0:00:07]} 65. Be2 {[%clk 0:01:59]}  Bf5 {[%clk 0:00:07]} 66. Bc4 {[%clk 0:01:59]}  Bg4 {[%clk 0:00:07]} 67. Bd3 {[%clk 0:01:56]}  Bh3 {[%clk 0:00:07]} 68. Ke3 {[%clk 0:01:54]}  Bg4 {[%clk 0:00:07]} 69. Be4 {[%clk 0:01:54]}  Bd1 {[%clk 0:00:06]} 70. Bf3 {[%clk 0:01:54]}  Bc2 {[%clk 0:00:06]} 71. Be2 {[%clk 0:01:53]}  Bf5 {[%clk 0:00:06]} 72. Kf3 {[%clk 0:01:53]}  Bg6 {[%clk 0:00:06]} 73. Kg4 {[%clk 0:01:51]}  Kf7 {[%clk 0:00:06]} 74. Bc4 {[%clk 0:01:51]}  Bf5+ {[%clk 0:00:06]} 75. Kh5 {[%clk 0:01:51]}  Bg6+ {[%clk 0:00:06]} 76. Kxh6 {[%clk 0:01:50]}  Bf5 {[%clk 0:00:07]} 77. Kg5 {[%clk 0:01:50]}  Bh7 {[%clk 0:00:06]} 78. g4 {[%clk 0:01:50]}  Ke7 {[%clk 0:00:01]} 79. f5 {[%clk 0:01:50]} 1-0


[Site "https://www.chess.com"]